fUSD/lending_fUSD_20241003
["ID","MTS","AMOUNT","RATE_DAILY","PERIOD"]
[339791103,1727987518972,-648.29,0.00034794,120]
[339791104,1727987518981,-1962.84,0.00034794,120]
[339791105,1727987518991,-770.99,0.00034794,120]
[339791106,1727987519001,-1812.58,0.00034794,120]
[339791107,1727987519010,-1106.97,0.00034794,120]
[339791108,1727987519022,-995.24,0.00034794,120]
[339791109,1727987519032,-1103.780855,0.00034794,7]
[339791110,1727987519041,-1533.42,0.00034794,120]
[339791111,1727987519051,-500.0,0.00034794,120]
[339791112,1727987519060,-1245.45,0.00034794,120]
[339791113,1727987519070,-2708.28,0.00034794,120]
[339791114,1727987519079,-1103.78085,0.00034794,7]
[339791115,1727987519089,-205.761716,0.00034794,7]
[339791116,1727987519099,-1028.68,0.00034794,120]
[339791117,1727987519108,-919.76,0.00034794,120]
[339791118,1727987519118,-500.0,0.00034794,120]
[339791119,1727987519127,-2392.87,0.00034794,120]
[339791120,1727987519136,-500.0,0.00034794,120]
[339791121,1727987519145,-205.761716,0.00034794,7]
[339791122,1727987519155,-1219.91,0.00034794,120]
[339791123,1727987519164,-967.14,0.00034794,120]
[339791124,1727987519174,-500.0,0.00034794,120]
[339791125,1727987519188,-1971.05,0.00034794,120]
[339791126,1727987519198,-11039.47,0.00034794,120]
[339791127,1727987519208,-647.95,0.00034794,120]
[339791128,1727987519217,-1835.01,0.00034794,120]
[339791129,1727987519228,-500.0,0.00034794,120]
[339791130,1727987519237,-1066.51,0.00034794,120]
[339791131,1727987519247,-2065.61,0.00034794,120]
[339791132,1727987519257,-500.0,0.00034794,120]
[339791133,1727987519267,-2041.33,0.00034794,120]
[339791134,1727987519276,-500.0,0.00034794,120]
[339791135,1727987519286,-500.0,0.00034794,120]
[339791136,1727987519296,-810.170864,0.00034794,7]
[339791137,1727987519306,-701.71,0.00034794,120]
[339791138,1727987519315,-512.38,0.00034794,120]
[339791139,1727987519325,-500.0,0.00034794,120]
[339791140,1727987519334,-810.170874,0.00034794,7]
[339791141,1727987519346,-527.76,0.00034794,120]
[339791142,1727987519355,-527.0,0.00034794,120]
[339791143,1727987519365,-1302.4,0.00034794,120]
[339791144,1727987519374,-379.544111,0.00034794,7]
[339791145,1727987519384,-500.0,0.00034794,120]
[339791146,1727987519395,-1041.18,0.00034794,120]
[339791147,1727987519405,-968.42,0.00034794,120]
[339791148,1727987519415,-379.544109,0.00034794,7]
[339791149,1727987519425,-500.0,0.00034794,120]
[339791150,1727987519434,-500.0,0.00034794,120]
[339791151,1727987519443,-1510.82,0.00034794,120]
[339791152,1727987519453,-2058.43,0.00034794,120]
[339791153,1727987519462,-1123.06,0.00034794,120]
[339791154,1727987519471,-500.0,0.00034794,120]
[339791155,1727987519481,-1635.85,0.00034794,120]
[339791156,1727987519491,-2566.99,0.00034794,120]
[339791157,1727987519501,-500.52,0.00034794,120]
[339791158,1727987519511,-1766.39,0.00034794,120]
[339791159,1727987519522,-500.0,0.00034794,120]
[339791160,1727987519532,-1421.18,0.00034794,120]
[339791161,1727987519542,-2301.76,0.00034794,120]
[339791162,1727987519552,-500.0,0.00034794,120]
[339791163,1727987519562,-1093.77,0.00034794,120]
[339791164,1727987519572,-2041.08,0.00034794,120]
[339791165,1727987519582,-500.0,0.00034794,120]
[339791166,1727987519591,-1056.72,0.00034794,120]
[339791167,1727987519601,-500.0,0.00034794,120]
[339791168,1727987519610,-500.0,0.00034794,120]
[339791169,1727987519620,-575.99,0.00034794,120]
[339791170,1727987519630,-4824.18,0.00034794,120]
[339791171,1727987519640,-2539.88,0.00034794,120]
[339791172,1727987519649,-500.0,0.00034794,120]
[339791173,1727987519659,-153.765901,0.00034794,7]
[339791174,1727987519668,-1031.81,0.00034794,120]
[339791175,1727987519680,-153.765897,0.00034794,7]
[339791176,1727987519689,-1058.32,0.00034794,120]
[339791177,1727987519699,-500.0,0.00034794,120]
[339791178,1727987519709,-500.0,0.00034794,120]
[339791179,1727987519718,-500.0,0.00034794,120]
[339791180,1727987519728,-2770.27,0.00034794,120]
[339791181,1727987519737,-500.0,0.00034794,120]
[339791182,1727987519747,-2126.28,0.00034794,120]
[339791183,1727987519756,-500.0,0.00034794,120]
[339791184,1727987519852,-3109.58,0.00034794,120]
[339791185,1727987519864,-500.0,0.00034794,120]
[339791186,1727987519874,-1989.39,0.00034794,120]
[339791187,1727987519883,-2838.83,0.00034794,120]
[339791188,1727987519893,-2489.9,0.00034794,120]
[339791189,1727987519902,-2454.73,0.00034794,120]
[339791190,1727987519913,-1539.86,0.00034794,120]
[339791191,1727987519922,-1548.63,0.00034794,120]
[339791192,1727987519935,-751.5,0.00034794,120]
[339791193,1727987519945,-1135.51,0.00034794,120]
[339791194,1727987519954,-500.0,0.00034794,120]
[339791195,1727987519964,-26307.75,0.00034794,120]
[339791196,1727987519973,-1359.32,0.00034794,120]
[339791197,1727987519983,-920.13,0.00034794,120]
[339791198,1727987519992,-2373.28,0.00034794,120]
[339791199,1727987520002,-723.9,0.00034794,120]
[339791200,1727987520011,-500.0,0.00034794,120]
[339791201,1727987520021,-683.05,0.00034794,120]
[339791202,1727987520031,-400.92168737,0.00034794,120]
[339791203,1727987520041,-1328.33,0.00034794,120]
[339791204,1727987520051,-500.0,0.00034794,120]
[339791205,1727987520060,-500.0,0.00034794,120]
[339791206,1727987520070,-629.8529406,0.00034794,120]
[339791207,1727987520079,-1718.99,0.00034794,120]
[339791208,1727987520089,-2515.59,0.00034794,120]
[339791209,1727987520099,-953.41,0.00034794,120]
[339791210,1727987520109,-2264.01,0.00034794,120]
[339791211,1727987520118,-876.22,0.00034794,120]
[339791212,1727987520128,-1281.35,0.00034794,120]
[339791213,1727987520137,-2588.02,0.00034794,120]
[339791214,1727987520147,-1057.1,0.00034794,120]
[339791215,1727987520157,-1543.66,0.00034794,120]
[339791216,1727987520166,-567.28,0.00034794,120]
[339791217,1727987520176,-1173.73,0.00034794,120]
[339791218,1727987520186,-500.0,0.00034794,120]
[339791219,1727987520196,-622.45,0.00034794,120]
[339791220,1727987520206,-831.03,0.00034794,120]
[339791221,1727987520215,-574.46,0.00034794,120]
[339791222,1727987520225,-264.26215568,0.00034794,120]
[339791223,1727987520235,-999.57,0.00034794,120]
[339791224,1727987520244,-605.72,0.00034794,120]
[339791225,1727987520254,-500.0,0.00034794,120]
[339791226,1727987520264,-656.14,0.00034794,24]
[339791227,1727987520274,-1059.55,0.00034794,120]
[339791228,1727987520283,-500.0,0.00034794,120]
[339791229,1727987520293,-2557.98,0.00034794,120]
[339791230,1727987520302,-1114.36,0.00034794,120]
[339791231,1727987520312,-985.85,0.00034794,120]
[339791232,1727987520322,-2619.08,0.00034794,120]
[339791233,1727987520331,-2196.8,0.00034794,120]
[339791234,1727987520341,-623.45,0.00034794,120]
[339791235,1727987520351,-1368.57,0.00034794,120]
[339791236,1727987520361,-534.46,0.00034794,120]
[339791237,1727987520370,-1760.97,0.00034794,120]
[339791238,1727987520379,-4833.89,0.00034794,120]
[339791239,1727987520389,-1036.03,0.00034794,120]
[339791240,1727987520398,-613.95,0.00034794,120]
[339791241,1727987520407,-1437.23,0.00034794,120]
[339791242,1727987520417,-1295.57,0.00034794,120]
[339791243,1727987520428,-1100.59,0.00034794,120]
[339791244,1727987520437,-581.64,0.00034794,120]
[339791245,1727987520447,-500.0,0.00034794,120]
[339791246,1727987520456,-1584.05,0.00034794,120]
[339791247,1727987520466,-500.0,0.00034794,120]
[339791248,1727987520475,-1739.53,0.00034794,120]
[339791249,1727987520485,-780.59,0.00034794,120]
[339791250,1727987520495,-500.0,0.00034794,120]
[339791251,1727987520504,-10179.37,0.00034794,120]
[339791252,1727987520514,-1002.66,0.00034794,120]
[339791253,1727987520524,-567.89,0.00034794,120]
[339791254,1727987520533,-504.47,0.00034794,120]
[339791255,1727987520543,-859.91,0.00034794,120]
[339791256,1727987520552,-8270.07,0.00034794,21]
[339791257,1727987520561,-669.41,0.00034794,120]
[339791258,1727987520570,-1138.44,0.00034794,120]
[339791259,1727987520579,-631.12,0.00034794,120]
[339791260,1727987520589,-4586.08,0.00034794,120]
[339791261,1727987520598,-2304.02,0.00034794,120]
[339791262,1727987520607,-500.0,0.00034794,120]
[339791263,1727987520617,-811.67,0.00034794,120]
[339791264,1727987520626,-536.29,0.00034794,120]
[339791265,1727987520635,-994.04,0.00034794,120]
[339791266,1727987520644,-500.0,0.00034794,120]
[339791267,1727987520653,-1256.67,0.00034794,120]
[339791268,1727987520662,-150.0,0.00034873,120]
[339791269,1727987520671,-497.5,0.000349,120]
[339791270,1727987520682,-1147.412068,0.0003494,14]
[339791271,1727987520692,-1000.0,0.0003496,14]
[339791272,1727987520701,-1000.0,0.0003498,14]
[339791273,1727987520710,-50000.0,0.00035,30]
[339791274,1727987520719,-450.0,0.00035,60]
[339791275,1727987520728,-10736.0,0.00035,30]
[339791276,1727987520737,-20000.0,0.00035,30]
[339791277,1727987520747,-240.0144526,0.00035,120]
[339791278,1727987520756,-25021.2159,0.00035,30]
[339791279,1727987520766,-1000.0,0.00035,14]
[339791280,1727987520775,-3972.26846441,0.00035,2]
[339791281,1727987520785,-5000.0,0.00035,120]
[339791282,1727987520794,-150.0404994,0.00035,10]
[339791283,1727987520804,-1300.0,0.00035,90]
[339791284,1727987520813,-200.0,0.00035,120]
[339791285,1727987520823,-6958.747316,0.00035044,2]
[339791286,1727987520832,-500.0,0.00035068,120]
[339791287,1727987520841,-272.664596,0.00035068,7]
[339791288,1727987520852,-151.0,0.00035068,7]
[339791289,1727987520863,-151.0,0.00035068,7]
[339791290,1727987520872,-242.666669,0.00035068,7]
[339791291,1727987520881,-242.666675,0.00035068,7]
[339791292,1727987520890,-151.0,0.00035068,7]
[339791293,1727987520901,-151.0,0.00035068,7]
[339791294,1727987520910,-380.037178,0.00035068,7]
[339791295,1727987520919,-380.037178,0.00035068,7]
[339791296,1727987520932,-280.389785,0.00035068,7]
[339791297,1727987520942,-280.38978,0.00035068,7]
[339791298,1727987520951,-305.552585,0.00035068,7]
[339791299,1727987520960,-305.552585,0.00035068,7]
[339791300,1727987520970,-3436.547188,0.00035068,7]
[339791301,1727987520979,-3436.547188,0.00035068,7]
[339791302,1727987520988,-272.92873,0.00035068,7]
[339791303,1727987520998,-151.0,0.00035068,7]
[339791304,1727987521007,-272.92873,0.00035068,7]
[339791305,1727987521017,-151.0,0.00035068,7]
[339791306,1727987521027,-163.942849,0.00035068,7]
[339791307,1727987521036,-1830.04,0.00035068,120]
[339791308,1727987521046,-500.0,0.00035068,120]
[339791309,1727987521055,-151.0,0.00035068,7]
[339791310,1727987521064,-1465.14,0.00035068,120]
[339791311,1727987521074,-731.74,0.00035068,120]
[339791312,1727987521083,-500.0,0.00035068,120]
[339791313,1727987521093,-500.0,0.00035068,120]
[339791314,1727987521102,-500.0,0.00035068,120]
[339791315,1727987521112,-500.0,0.00035068,120]
[339791316,1727987521121,-1375.31,0.00035068,120]
[339791317,1727987521130,-668.57,0.00035068,120]
[339791318,1727987521140,-500.0,0.00035068,120]
[339791319,1727987521150,-500.0,0.00035068,120]
[339791320,1727987521159,-1062.68,0.00035068,120]
[339791321,1727987521169,-500.0,0.00035068,120]
[339791322,1727987521181,-1108.65,0.00035068,120]
[339791323,1727987521190,-1917.75,0.00035068,120]
[339791324,1727987521200,-1239.66,0.00035068,120]
[339791325,1727987521210,-162.493315,0.00035068,7]
[339791326,1727987521219,-749.5,0.00035068,120]
[339791327,1727987521229,-162.493311,0.00035068,7]
[339791328,1727987521239,-1219.3,0.00035068,120]
[339791329,1727987521248,-1706.35,0.00035068,120]
[339791330,1727987521258,-500.0,0.00035068,120]
[339791331,1727987521267,-1816.28,0.00035068,120]
[339791332,1727987521276,-172.725409,0.00035068,7]
[339791333,1727987521286,-608.59,0.00035068,120]
[339791334,1727987521296,-501.04085366,0.00035068,120]
[339791335,1727987521306,-172.725417,0.00035068,7]
[339791336,1727987521315,-500.0,0.00035068,120]
[339791337,1727987521325,-500.0,0.00035068,120]
[339791338,1727987521335,-500.0,0.00035068,120]
[339791339,1727987521344,-688.2,0.00035068,120]
[339791340,1727987521354,-818.32,0.00035068,120]
[339791341,1727987521364,-1382.26449,0.00035068,7]
[339791342,1727987521373,-212.219392,0.00035068,7]
[339791343,1727987521383,-356.49978528,0.00035068,120]
[339791344,1727987521392,-2173.75,0.00035068,120]
[339791345,1727987521402,-212.219393,0.00035068,7]
[339791346,1727987521411,-721.06,0.00035068,120]
[339791347,1727987521420,-2649.5,0.00035068,120]
[339791348,1727987521432,-500.0,0.00035068,120]
[339791349,1727987521442,-500.0,0.00035068,120]
[339791350,1727987521451,-500.0,0.00035068,120]
[339791351,1727987521461,-500.0,0.00035068,120]
[339791352,1727987521470,-952.32,0.00035068,120]
[339791353,1727987521480,-500.0,0.00035068,15]
[339791354,1727987521489,-508.75,0.00035068,120]
[339791355,1727987521499,-500.0,0.00035068,120]
[339791356,1727987521508,-2782.16,0.00035068,120]
[339791357,1727987521518,-500.0,0.00035068,120]
[339791358,1727987521527,-500.0,0.00035068,120]
[339791359,1727987521536,-799.66,0.00035068,120]
[339791360,1727987521546,-500.0,0.00035068,120]
[339791361,1727987521555,-528.54,0.00035068,120]
[339791362,1727987521565,-500.0,0.00035068,120]
[339791363,1727987521574,-1116.48,0.00035068,120]
[339791364,1727987521583,-500.0,0.00035068,120]
[339791365,1727987521593,-500.0,0.00035068,120]
[339791366,1727987521602,-500.0,0.00035068,120]
[339791367,1727987521612,-500.0,0.00035068,120]
[339791368,1727987521621,-500.0,0.00035068,120]
[339791369,1727987521630,-500.0,0.00035068,120]
[339791370,1727987521640,-667.6,0.00035068,120]
[339791371,1727987521649,-516.86,0.00035068,120]
[339791372,1727987521658,-577.36,0.00035068,120]
[339791373,1727987521668,-448.340669,0.00035068,7]
[339791374,1727987521680,-151.0,0.00035068,7]
[339791375,1727987521690,-500.0,0.00035068,120]
[339791376,1727987521699,-448.340669,0.00035068,7]
[339791377,1727987521709,-2275.0,0.00035068,120]
[339791378,1727987521718,-1181.76,0.00035068,120]
[339791379,1727987521727,-1059.01,0.00035068,120]
[339791380,1727987521736,-500.0,0.00035068,120]
[339791381,1727987521746,-316.28097,0.00035068,7]
[339791382,1727987521756,-678.32,0.00035068,120]
[339791383,1727987521766,-500.0,0.00035068,120]
[339791384,1727987521775,-500.0,0.00035068,120]
[339791385,1727987521784,-908.96,0.00035068,120]
[339791386,1727987521794,-806.47,0.00035068,120]
[339791387,1727987521804,-316.280971,0.00035068,7]
[339791388,1727987521813,-181.278868,0.00035068,7]
[339791389,1727987521823,-500.0,0.00035068,120]
[339791390,1727987521833,-1850.2,0.00035068,120]
[339791391,1727987521842,-500.0,0.00035068,120]
[339791392,1727987521855,-181.278868,0.00035068,7]
[339791393,1727987521864,-500.0,0.00035068,120]
[339791394,1727987521874,-500.0,0.00035068,120]
[339791395,1727987521883,-532.65,0.00035068,120]
[339791396,1727987521893,-500.0,0.00035068,120]
[339791397,1727987521902,-500.0,0.00035068,120]
[339791398,1727987521911,-500.0,0.00035068,120]
[339791399,1727987521920,-951.98,0.00035068,120]
[339791400,1727987521933,-3113.1,0.00035068,120]
[339791401,1727987521947,-500.0,0.00035068,120]
[339791402,1727987521956,-952.18,0.00035068,120]
[339791403,1727987521966,-1578.27,0.00035068,120]
[339791404,1727987521975,-799.85,0.00035068,120]
[339791405,1727987521985,-500.0,0.00035068,120]
[339791406,1727987521994,-708.6,0.00035068,120]
[339791407,1727987522003,-584.82,0.00035068,120]
[339791408,1727987522013,-560.83,0.00035068,120]
[339791409,1727987522023,-610.78,0.00035068,120]
[339791410,1727987522032,-1249.01,0.00035068,120]
[339791411,1727987522042,-500.0,0.00035068,120]
[339791412,1727987522052,-500.0,0.00035068,120]
[339791413,1727987522061,-589.78461435,0.00035068,120]
[339791414,1727987522070,-500.0,0.00035068,120]
[339791415,1727987522080,-1225.26,0.00035068,120]
[339791416,1727987522090,-500.0,0.00035068,120]
[339791417,1727987522100,-911.79,0.00035068,120]
[339791418,1727987522109,-817.82,0.00035068,120]
[339791419,1727987522119,-500.0,0.00035068,120]
[339791420,1727987522129,-517.59,0.00035068,120]
[339791421,1727987522139,-1292.49,0.00035068,7]
[339791422,1727987522149,-500.0,0.00035068,120]
[339791423,1727987522159,-500.0,0.00035068,120]
[339791424,1727987522168,-500.0,0.00035068,120]
[339791425,1727987522179,-762.72,0.00035068,120]
[339791426,1727987522188,-1396.71,0.00035068,120]
[339791427,1727987522198,-1184.87,0.00035068,120]
[339791428,1727987522209,-1701.57,0.00035068,120]
[339791429,1727987522218,-714.2,0.00035068,120]
[339791430,1727987522228,-500.0,0.00035068,120]
[339791431,1727987522238,-676.51,0.00035068,120]
[339791432,1727987522247,-1713.42,0.00035068,120]
[339791433,1727987522257,-543.4,0.00035068,120]
[339791434,1727987522267,-615.69,0.00035068,120]
[339791435,1727987522277,-500.0,0.00035068,120]
[339791436,1727987522286,-675.57,0.00035068,120]
[339791437,1727987522296,-822.0,0.00035068,120]
[339791438,1727987522306,-500.0,0.00035068,120]
[339791439,1727987522316,-781.4,0.00035068,120]
[339791440,1727987522325,-500.0,0.00035068,120]
[339791441,1727987522335,-747.69,0.00035068,120]
[339791442,1727987522344,-500.0,0.00035068,120]
[339791443,1727987522354,-500.0,0.00035068,120]
[339791444,1727987522364,-911.34,0.00035068,120]
[339791445,1727987522373,-500.0,0.00035068,120]
[339791446,1727987522382,-617.77,0.00035068,120]
[339791447,1727987522392,-500.0,0.00035068,120]
[339791448,1727987522401,-500.0,0.00035068,120]
[339791449,1727987522412,-1099.61,0.00035068,120]
[339791450,1727987522421,-500.0,0.00035068,120]
[339791451,1727987522432,-1245.73,0.00035068,120]
[339791452,1727987522441,-605.0,0.00035068,120]
[339791453,1727987522451,-570.35,0.00035068,120]
[339791454,1727987522460,-614.52,0.00035068,120]
[339791455,1727987522470,-806.75,0.00035068,120]
[339791456,1727987522479,-761.4,0.00035068,120]
[339791457,1727987522489,-500.0,0.00035068,120]
[339791458,1727987522499,-500.0,0.00035068,120]
[339791459,1727987522508,-500.0,0.00035068,120]
[339791460,1727987522518,-1016.56,0.00035068,120]
[339791461,1727987522528,-375.0051985,0.00035068,120]
[339791462,1727987522538,-500.0,0.00035068,120]
[339791463,1727987522547,-908.19,0.00035068,120]
[339791464,1727987522557,-500.0,0.00035068,120]
[339791465,1727987522567,-650.02,0.00035068,120]
[339791466,1727987522576,-2907.54,0.00035068,120]
[339791467,1727987522586,-1955.84,0.00035068,120]
[339791468,1727987522595,-666.23,0.00035068,120]
[339791469,1727987522605,-500.0,0.00035068,5]
[339791470,1727987522614,-619.0,0.00035068,120]
[339791471,1727987522624,-1476.07,0.00035068,120]
[339791472,1727987522633,-500.0,0.00035068,120]
[339791473,1727987522643,-200.0,0.00035068,7]
[339791474,1727987522652,-664.13,0.00035068,120]
[339791475,1727987522662,-580.92,0.00035068,120]
[339791476,1727987522671,-559.23,0.00035068,120]
[339791477,1727987522682,-371.65045978,0.00035068,120]
[339791478,1727987522691,-682.12,0.00035068,120]
[339791479,1727987522701,-500.0,0.00035068,120]
[339791480,1727987522710,-662.07,0.00035068,120]
[339791481,1727987522720,-500.0,0.00035068,120]
[339791482,1727987522729,-1017.64,0.00035068,120]
[339791483,1727987522739,-1843.32,0.00035068,120]
[339791484,1727987522749,-929.85,0.00035068,120]
[339791485,1727987522759,-903.96,0.00035068,120]
[339791486,1727987522770,-1244.9,0.00035068,120]
[339791487,1727987522781,-2059.5,0.00035068,120]
[339791488,1727987522791,-1208.85,0.00035068,120]
[339791489,1727987522802,-500.0,0.00035068,120]
[339791490,1727987522812,-1392.18,0.00035068,120]
[339791491,1727987522822,-431.6854533,0.00035068,120]
[339791492,1727987522831,-1754.22,0.00035068,120]
[339791493,1727987522841,-500.0,0.00035068,120]
[339791494,1727987522850,-3096.26,0.00035068,120]
[339791495,1727987522862,-838.34,0.00035068,120]
[339791496,1727987522872,-500.0,0.00035068,120]
[339791497,1727987522882,-767.37,0.00035068,120]
[339791498,1727987522891,-1262.93,0.00035068,120]
[339791499,1727987522901,-500.0,0.00035068,120]
[339791500,1727987522911,-900.49,0.00035068,120]
[339791501,1727987522920,-871.88,0.00035068,120]
[339791502,1727987522933,-546.33,0.00035068,120]
[339791503,1727987522943,-1915.72,0.00035068,120]
[339791504,1727987522953,-500.0,0.00035068,120]
[339791505,1727987522962,-542.05,0.00035068,120]
[339791506,1727987522972,-1246.58,0.00035068,120]
[339791507,1727987522982,-252.21529178,0.00035068,120]
[339791508,1727987522992,-755.2,0.00035068,120]
[339791509,1727987523001,-515.39,0.00035068,120]
[339791510,1727987523011,-1449.61,0.00035068,120]
[339791511,1727987523020,-500.0,0.00035068,120]
[339791512,1727987523030,-615.97,0.00035068,120]
[339791513,1727987523040,-500.0,0.00035068,120]
[339791514,1727987523050,-500.0,0.00035068,120]
[339791515,1727987523059,-828.98,0.00035068,120]
[339791516,1727987523069,-522.48,0.00035068,120]
[339791517,1727987523080,-500.0,0.00035068,120]
[339791518,1727987523090,-769.93,0.00035068,120]
[339791519,1727987523100,-349.86021123,0.00035068,120]
[339791520,1727987523110,-1535.42,0.00035068,120]
[339791521,1727987523120,-500.0,0.00035068,120]
[339791522,1727987523130,-692.01,0.00035068,120]
[339791523,1727987523140,-500.0,0.00035068,120]
[339791524,1727987523151,-500.0,0.00035068,120]
[339791525,1727987523160,-500.0,0.00035068,120]
[339791526,1727987523170,-617.57,0.00035068,120]
[339791527,1727987523181,-1322.47,0.00035068,120]
[339791528,1727987523191,-3041.51,0.00035068,120]
[339791529,1727987523200,-678.3,0.00035068,120]
[339791530,1727987523210,-1088.33,0.00035068,120]
[339791531,1727987523220,-685.28,0.00035068,120]
[339791532,1727987523229,-809.97,0.00035068,120]
[339791533,1727987523239,-617.35,0.00035068,120]
[339791534,1727987523249,-500.0,0.00035068,120]
[339791535,1727987523259,-500.0,0.00035068,120]
[339791536,1727987523268,-221.24863546,0.00035068,120]
[339791537,1727987523277,-504.49,0.00035068,120]
[339791538,1727987523288,-1000.0,0.00035068,120]
[339791539,1727987523298,-2582.55,0.00035068,14]
[339791540,1727987523308,-821.22,0.00035068,120]
[339791541,1727987523319,-500.0,0.00035068,120]
[339791542,1727987523329,-1192.92,0.00035068,120]
[339791543,1727987523339,-752.83,0.00035068,120]
[339791544,1727987523348,-500.0,0.00035068,120]
[339791545,1727987523358,-2036.76,0.00035068,2]
[339791546,1727987523368,-500.0,0.00035068,120]
[339791547,1727987523378,-1822.29,0.00035068,120]
[339791548,1727987523388,-696.33,0.00035068,120]
[339791549,1727987523398,-500.0,0.00035068,120]
[339791550,1727987523407,-1595.23,0.00035068,120]
[339791551,1727987523417,-500.0,0.00035068,120]
[339791552,1727987523427,-1676.96,0.00035068,120]
[339791553,1727987523437,-1430.65,0.00035068,120]
[339791554,1727987523447,-500.0,0.00035068,120]
[339791555,1727987523457,-500.0,0.00035068,120]
[339791556,1727987523467,-1022.58,0.00035068,120]
[339791557,1727987523477,-534.34,0.00035068,120]
[339791558,1727987523488,-572.51,0.00035068,120]
[339791559,1727987523498,-500.0,0.00035068,120]
[339791560,1727987523507,-743.36,0.00035068,120]
[339791561,1727987523518,-722.75,0.00035068,120]
[339791562,1727987523528,-2933.87,0.00035068,120]
[339791563,1727987523538,-891.75,0.00035068,120]
[339791564,1727987523548,-734.12,0.00035068,120]
[339791565,1727987523558,-500.0,0.00035068,120]
[339791566,1727987523568,-534.95375357,0.00035068,120]
[339791567,1727987523578,-500.0,0.00035068,120]
[339791568,1727987523589,-830.44,0.00035068,120]
[339791569,1727987523599,-2736.92,0.00035068,120]
[339791570,1727987523609,-2840.63,0.00035068,120]
[339791571,1727987523619,-1668.6,0.00035068,120]
[339791572,1727987523630,-963.2,0.00035068,120]
[339791573,1727987523640,-500.0,0.00035068,120]
[339791574,1727987523652,-3064.64,0.00035068,120]
[339791575,1727987523662,-200.38224337,0.00035068,120]
[339791576,1727987523672,-433.03430426,0.00035068,120]
[339791577,1727987523683,-895.53,0.00035068,120]
[339791578,1727987523693,-500.0,0.00035068,120]
[339791579,1727987523704,-603.25,0.00035068,120]
[339791580,1727987523714,-893.66,0.00035068,120]
[339791581,1727987523724,-1265.22,0.00035068,120]
[339791582,1727987523734,-648.93,0.00035068,120]
[339791583,1727987523744,-702.69,0.00035068,120]
[339791584,1727987523754,-912.75,0.00035068,120]
[339791585,1727987523764,-500.0,0.00035068,120]
[339791586,1727987523775,-625.95,0.00035068,120]
[339791587,1727987523785,-500.0,0.00035068,120]
[339791588,1727987523795,-500.0,0.00035068,120]
[339791589,1727987523805,-589.87,0.00035068,120]
[339791590,1727987523816,-500.0,0.00035068,120]
[339791591,1727987523827,-904.15,0.00035068,120]
[339791592,1727987523837,-378.02572486,0.00035068,120]
[339791593,1727987523848,-809.38,0.00035068,120]
[339791594,1727987523864,-1583.67,0.00035068,120]
[339791595,1727987523874,-500.0,0.00035068,120]
[339791596,1727987523885,-500.0,0.00035068,120]
[339791597,1727987523895,-2849.48,0.00035068,120]
[339791598,1727987523907,-1559.78,0.00035068,120]
[339791599,1727987523917,-526.9,0.00035068,120]
[339791600,1727987523927,-522.66,0.00035068,120]
[339791601,1727987523943,-887.97,0.00035068,120]
[339791602,1727987523954,-608.69,0.00035068,120]